fUST/lending_fUST_20240318
["ID","MTS","AMOUNT","RATE_DAILY","PERIOD"]
[319362248,1710702634068,-500.0,0.00019999,2]
[319362249,1710702634078,-500.0,0.00019999,2]
[319362250,1710702634086,-500.0,0.00019999,2]
[319362251,1710702634095,-500.0,0.00019999,2]
[319362252,1710702634105,-500.0,0.00019999,2]
[319362253,1710702634115,-500.0,0.00019999,2]
[319362254,1710702634126,-500.0,0.00019999,2]
[319362255,1710702634135,-500.0,0.00019999,2]
[319362256,1710702634145,-500.0,0.00019999,2]
[319362257,1710702634154,-420.16,0.00019999,2]
[319362258,1710702634163,-500.0,0.00019999,2]
[319362259,1710702634173,-500.0,0.00019999,2]
[319362260,1710702634182,-603.86426222,0.00019999,2]
[319362261,1710702634191,-500.0,0.00019999,2]
[319362262,1710702634202,-500.0,0.00019999,2]
[319362263,1710702634211,-286.35031191,0.00019999,2]
[319362264,1710702634221,-500.0,0.00019999,2]
[319362265,1710702634230,-500.0,0.00019999,2]
[319362266,1710702634239,-500.0,0.00019999,2]
[319362267,1710702634248,-500.0,0.00019999,2]
[319362268,1710702634257,-500.0,0.00019999,2]
[319362269,1710702634266,-500.0,0.00019999,2]
[319362270,1710702634276,-501.86817326,0.00019999,2]
[319362271,1710702634285,-336.0,0.00019999,2]
[319362272,1710702634294,-500.0,0.00019999,2]
[319362273,1710702634303,-500.0,0.00019999,2]
[319362274,1710702634313,-618.58439279,0.00019999,2]
[319362275,1710702634322,-500.0,0.00019999,2]
[319362276,1710702634331,-500.0,0.00019999,2]
[319362277,1710702634340,-500.0,0.00019999,2]
[319362278,1710702634349,-500.0,0.00019999,2]
[319362279,1710702634359,-500.0,0.00019999,2]
[319362280,1710702634370,-500.0,0.00019999,2]
[319362281,1710702634380,-649.39635931,0.00019999,2]
[319362282,1710702634390,-500.0,0.00019999,2]
[319362283,1710702634399,-558.1317035,0.00019999,2]
[319362284,1710702634408,-500.0,0.00019999,2]
[319362285,1710702634417,-500.0,0.00019999,2]
[319362286,1710702634426,-500.0,0.00019999,2]
[319362287,1710702634436,-500.0,0.00019999,2]
[319362288,1710702634445,-500.0,0.00019999,2]
[319362289,1710702634454,-174.88,0.00019999,2]
[319362290,1710702634463,-500.0,0.00019999,2]
[319362291,1710702634472,-500.0,0.00019999,2]
[319362292,1710702634482,-500.0,0.00019999,2]
[319362293,1710702634491,-500.0,0.00019999,2]
[319362294,1710702634500,-500.0,0.00019999,2]
[319362295,1710702634509,-438.02,0.00019999,2]
[319362296,1710702634519,-500.0,0.00019999,2]
[319362297,1710702634528,-500.0,0.00019999,2]
[319362298,1710702634537,-500.0,0.00019999,2]
[319362299,1710702634546,-500.0,0.00019999,2]
[319362300,1710702634555,-500.0,0.00019999,2]
[319362301,1710702634565,-438.02,0.00019999,2]
[319362302,1710702634574,-500.0,0.00019999,2]
[319362303,1710702634584,-500.0,0.00019999,2]
[319362304,1710702634593,-500.0,0.00019999,2]
[319362305,1710702634603,-500.0,0.00019999,2]
[319362306,1710702634613,-438.02,0.00019999,2]
[319362307,1710702634624,-500.0,0.00019999,2]
[319362308,1710702634634,-500.0,0.00019999,2]
[319362309,1710702634644,-500.0,0.00019999,2]
[319362310,1710702634654,-500.0,0.00019999,2]
[319362311,1710702634663,-438.02,0.00019999,2]
[319362312,1710702634674,-500.0,0.00019999,2]
[319362313,1710702634683,-500.0,0.00019999,2]
[319362314,1710702634694,-500.0,0.00019999,2]
[319362315,1710702634703,-500.0,0.00019999,2]
[319362316,1710702634713,-438.02,0.00019999,2]
[319362317,1710702634723,-500.0,0.00019999,2]
[319362318,1710702634733,-500.0,0.00019999,2]
[319362319,1710702634742,-500.0,0.00019999,2]
[319362320,1710702634753,-500.0,0.00019999,2]
[319362321,1710702634762,-438.02,0.00019999,2]
[319362322,1710702634772,-500.0,0.00019999,2]
[319362323,1710702634782,-500.0,0.00019999,2]
[319362324,1710702634791,-500.0,0.00019999,2]
[319362325,1710702634801,-500.0,0.00019999,2]
[319362326,1710702634811,-500.0,0.00019999,2]
[319362327,1710702634820,-500.0,0.00019999,2]
[319362328,1710702634830,-500.0,0.00019999,2]
[319362329,1710702634839,-500.0,0.00019999,2]
[319362330,1710702634848,-500.0,0.00019999,2]
[319362331,1710702634857,-500.0,0.00019999,2]
[319362332,1710702634867,-500.0,0.00019999,2]
[319362333,1710702634878,-500.0,0.00019999,2]
[319362334,1710702634887,-314.06,0.00019999,2]
[319362335,1710702634896,-151.0,0.00019999,2]
[319362336,1710702634905,-151.0,0.00019999,2]
[319362337,1710702634915,-151.0,0.00019999,2]
[319362338,1710702634924,-49921.6015501,0.0002,10]
[319362387,1710702638249,-78677.91380523,0.0002,10]
[319362621,1710702640307,-1363.98,0.0002,10]
[319362623,1710702640319,-141779.99999964,0.0002,10]
[319362850,1710702646592,-561.2926249,0.00019999,2]
[319362851,1710702646602,-3131.3673751,0.0002,10]
[319362855,1710702977371,-2401475.84502506,0.00021146,60]
[319362856,1710702977396,-1598524.15497494,0.00021146,60]
[319363043,1710703832499,-746.57804742,0.00017224,2]
[319363045,1710703832510,-269.42483516,0.00017225,2]
[319363047,1710703832521,-300.0,0.00017229,2]
[319363049,1710703832532,-21440.28858086,0.0001723,2]
[319363051,1710703832544,-3459.71141914,0.0001723,2]
[319363053,1710703832554,-168.25237891,0.00017303,2]
[319363054,1710703832563,-369.11811,0.00017403,2]
[319363056,1710703832572,-3042.31809195,0.00018,2]
[319363058,1710703832585,-1036.6743515,0.00018,2]
[319363176,1710703838589,-69535.5696497,0.00018,2]
[319363178,1710703838599,-325.52774236,0.00018,2]
[319363180,1710703838608,-2244.1997756,0.00018075,2]
[319363182,1710703838618,-1340.0,0.00018685,7]
[319363184,1710703838629,-300.0,0.00018952,2]
[319363186,1710703838639,-3704.00019661,0.00019046,2]
[319363189,1710703838650,-336.6291961,0.00019078,2]
[319363191,1710703838660,-168.2523789,0.00019175,2]
[319363193,1710703838670,-160.859042,0.00019178,2]
[319363195,1710703838679,-166.666666,0.00019178,2]
[319363197,1710703838690,-2000.0,0.00019373,2]
[319363200,1710703838710,-201.1801546,0.00019478,2]
[319363203,1710703838724,-236.41458362,0.000195,2]
[319363205,1710703838737,-259.3534582,0.00019507,2]
[319363207,1710703838750,-153.0,0.00019507,2]
[319363210,1710703838763,-153.0,0.000196,2]
[319363212,1710703838775,-166.666666,0.00019627,2]
[319363220,1710703838944,-7952.92016184,0.0001989,2]
[319363221,1710703838954,-27744.6271978,0.00019898,2]
[319363326,1710703843441,-1859.6499997,0.00019898,2]
[319363598,1710705032693,-269.42483516,0.00017718,2]
[319363601,1710705032703,-746.57804742,0.00017719,2]
[319363603,1710705032712,-24900.0,0.00017732,2]
[319363605,1710705032722,-168.2523789,0.00017738,2]
[319363607,1710705032731,-276.00954,0.00017838,2]
[319363610,1710705032743,-325.52774236,0.00018899,2]
[319363613,1710705032753,-3401.88668431,0.000189,2]
[319363617,1710705032762,-226.884402,0.00019178,2]
[319363619,1710705032771,-166.666666,0.00019178,2]
[319363622,1710705032781,-2000.0,0.00019373,2]
[319363626,1710705032790,-166.666666,0.00019627,2]
[319363629,1710705032799,-523.54246773,0.00019898,2]
[319363631,1710705032808,-500.0,0.00019899,2]
[319363634,1710705032817,-500.0,0.00019899,2]
[319363637,1710705032826,-500.0,0.00019899,2]
[319363640,1710705032835,-500.0,0.00019899,2]
[319363644,1710705032845,-658.92,0.00019899,2]
[319363648,1710705032855,-658.92,0.00019899,2]
[319363652,1710705032865,-658.92,0.00019899,2]
[319363655,1710705032874,-658.92,0.00019899,2]
[319363659,1710705032883,-500.0,0.00019899,2]
[319363663,1710705032892,-500.0,0.00019899,2]
[319363667,1710705032901,-500.0,0.00019899,2]
[319363670,1710705032910,-171.23678434,0.00019899,2]
[319363676,1710705032922,-328.76321566,0.00019899,2]
[319363680,1710705032931,-941.65036394,0.000199,2]
[319363789,1710705038636,-851.89835552,0.000199,2]
[319363792,1710705038648,-14106.04184444,0.000199,2]
[319363794,1710705038657,-1000.0,0.000199,2]
[319363796,1710705038667,-606.81470742,0.000199,2]
[319363798,1710705038676,-155.09615962,0.00019978,2]
[319363800,1710705038686,-1273.04703959,0.00019978,2]
[319363802,1710705038695,-500.0,0.00019997,2]
[319363804,1710705038704,-658.92,0.00019997,2]
[319363806,1710705038713,-652.11639019,0.00019998,2]
[319363808,1710705038722,-155.16378039,0.00019998,2]
[319363810,1710705038732,-716.96247816,0.00019998,2]
[319363811,1710705038741,-155.00310006,0.00019998,2]
[319363813,1710705038750,-558.67605724,0.00019998,2]
[319363815,1710705038759,-429.32831951,0.00019998,2]
[319363817,1710705038769,-875.5236,0.00019998,2]
[319363819,1710705038778,-852.18123884,0.00019998,2]
[319363821,1710705038787,-500.0,0.00019998,2]
[319363823,1710705038797,-500.0,0.00019998,2]
[319363825,1710705038806,-658.92,0.00019998,2]
[319363827,1710705038815,-327.11973155,0.00019998,2]
[319363829,1710705038824,-500.0,0.00019998,2]
[319363841,1710705038924,-154.95351395,0.00019998,2]
[319363843,1710705038934,-155.67026874,0.00019999,2]
[319363845,1710705038943,-1001.39103076,0.00019999,2]
[319363847,1710705038953,-536.13157526,0.00019999,2]
[319363849,1710705038962,-500.0,0.00019999,2]
[319363851,1710705038971,-402.74,0.00019999,2]
[319363853,1710705038981,-658.92,0.00019999,2]
[319363855,1710705038991,-658.92,0.00019999,2]
[319363857,1710705039001,-658.92,0.00019999,2]
[319363859,1710705039010,-658.92,0.00019999,2]
[319363861,1710705039021,-658.92,0.00019999,2]
[319363863,1710705039030,-658.92,0.00019999,2]
[319363865,1710705039039,-658.92,0.00019999,2]
[319363866,1710705039049,-658.92,0.00019999,2]
[319363869,1710705039059,-658.92,0.00019999,2]
[319363870,1710705039068,-658.92,0.00019999,2]
[319363872,1710705039078,-658.92,0.00019999,2]
[319363875,1710705039087,-658.92,0.00019999,2]
[319363876,1710705039097,-658.92,0.00019999,2]
[319363878,1710705039106,-658.92,0.00019999,2]
[319363880,1710705039116,-658.92,0.00019999,2]
[319363882,1710705039125,-658.92,0.00019999,2]
[319363884,1710705039135,-658.92,0.00019999,2]
[319363886,1710705039145,-659.06324472,0.00019999,2]
[319363887,1710705039155,-500.0,0.00019999,2]
[319363888,1710705039164,-500.0,0.00019999,2]
[319363889,1710705039173,-500.0,0.00019999,2]
[319363890,1710705039183,-500.0,0.00019999,2]
[319363891,1710705039192,-500.0,0.00019999,2]
[319363892,1710705039213,-500.0,0.00019999,2]
[319363893,1710705039223,-500.0,0.00019999,2]
[319363894,1710705039232,-500.0,0.00019999,2]
[319363895,1710705039242,-402.74,0.00019999,2]
[319363896,1710705039252,-500.0,0.00019999,2]
[319363897,1710705039261,-500.0,0.00019999,2]
[319363898,1710705039273,-500.0,0.00019999,2]
[319363899,1710705039283,-500.0,0.00019999,2]
[319363900,1710705039292,-500.0,0.00019999,2]
[319363901,1710705039302,-500.0,0.00019999,2]
[319363902,1710705039311,-500.0,0.00019999,2]
[319363903,1710705039320,-500.0,0.00019999,2]
[319363904,1710705039330,-402.74,0.00019999,2]
[319363905,1710705039339,-500.0,0.00019999,2]
[319363906,1710705039349,-500.0,0.00019999,2]
[319363907,1710705039358,-500.0,0.00019999,2]
[319363908,1710705039368,-500.0,0.00019999,2]
[319363909,1710705039377,-500.0,0.00019999,2]
[319363910,1710705039386,-201.37,0.00019999,2]
[319363911,1710705039396,-500.0,0.00019999,2]
[319363912,1710705039405,-500.0,0.00019999,2]
[319363913,1710705039415,-500.0,0.00019999,2]
[319363914,1710705039425,-500.0,0.00019999,2]
[319363915,1710705039434,-500.0,0.00019999,2]
[319363916,1710705039444,-201.37,0.00019999,2]
[319363917,1710705039452,-500.0,0.00019999,2]
[319363918,1710705039461,-29.63005773,0.00019999,2]
[319363919,1710705039474,-470.36994227,0.00019999,2]
[319363920,1710705039483,-500.0,0.00019999,2]
[319363921,1710705039492,-500.0,0.00019999,2]
[319363922,1710705039501,-201.37,0.00019999,2]
[319363923,1710705039510,-475.38804135,0.00019999,2]
[319364066,1710705238828,18477.2278962,0.00015498,2]
[319364140,1710706232006,-221.71988919,0.00015998,2]
[319364142,1710706232015,-229.455254,0.00017845,2]
[319364144,1710706232024,-325.52774236,0.00018,2]
[319364145,1710706232033,-933.94899322,0.00018501,2]
[319364247,1710706237896,-2433.15505038,0.00018501,2]
[319364331,1710706239890,-8123.56244767,0.00018501,2]
[319364637,1710707432223,-518.0051554,0.00017118,2]
[319364638,1710707432233,-300.0,0.0001729,2]
[319364639,1710707432244,-18137.61500993,0.00017291,2]
[319364640,1710707432255,-6762.38499007,0.00017291,2]
[319364641,1710707432267,-229.455254,0.00017497,2]
[319364642,1710707432276,-325.52774236,0.00018211,2]
[319364643,1710707432285,-1148.9778643,0.00018212,2]
[319364644,1710707432294,-153.0,0.00018652,2]
[319364645,1710707432303,-153.0,0.00018685,2]
[319364646,1710707432314,-153.0,0.00018778,2]
[319364647,1710707432323,-153.0,0.00018778,2]
[319364648,1710707432333,-9665.92639588,0.000188,2]
[319364649,1710707432344,-153.0,0.000188,2]
[319364650,1710707432354,-2267.9244562,0.000189,2]
[319364651,1710707432367,-153.0,0.000189,2]
[319364652,1710707432377,-153.0,0.000189,2]
[319364653,1710707432387,-153.0,0.000189,2]
[319364654,1710707432397,-153.0,0.000189,2]
[319364655,1710707432407,-185.2036933,0.00019052,2]
[319364656,1710707432417,-153.0,0.00019052,2]
[319364657,1710707432427,-679.76162798,0.00019117,2]
[319364658,1710707432437,-66.1299203,0.00019178,2]
[319364717,1710707438113,-149.4102607,0.00019178,2]
[319364718,1710707438122,-166.666666,0.00019178,2]
[319364719,1710707438131,-153.0,0.000192,2]
[319364720,1710707438140,-40.5730733,0.00019507,2]
[319364722,1710707438171,-112.4269267,0.00019507,2]
[319364724,1710707438180,-153.0,0.00019507,2]
[319364725,1710707438189,-153.0,0.00019507,2]
[319364726,1710707438199,-153.0,0.00019507,2]
[319364727,1710707438208,-153.0,0.00019507,2]
[319364729,1710707438218,-153.0,0.00019507,2]
[319364731,1710707438228,-153.0,0.00019507,2]
[319364733,1710707438237,-153.0,0.00019507,2]
[319364735,1710707438245,-166.666666,0.00019627,2]
[319364736,1710707438254,-1874.9921586,0.000198,2]
[319364738,1710707438263,-3611.57380532,0.000199,2]
[319365555,1710707446089,-1511.94963747,0.000189,2]
[319365556,1710707446098,-1665.00193511,0.000199,2]
[319365557,1710707446108,-1000.0,0.000199,2]
[319365558,1710707446117,-546.13323666,0.000199,2]
[319365559,1710707446125,-4836.26519076,0.0001998,10]
[319375687,1710707950374,-4000000.0,0.00021065,60]
[319375760,1710708632267,-210.81749262,0.00016686,2]
[319375761,1710708632276,-290.84412429,0.00016687,2]
[319375762,1710708632286,-322.28390503,0.00016687,2]
[319375763,1710708632297,-156.13848217,0.00016688,2]
[319375764,1710708632308,-814.25044424,0.00016688,2]
[319375765,1710708632318,-154.9690062,0.00016689,2]
[319375766,1710708632327,-704.36144243,0.00016691,2]
[319375767,1710708632337,-1895.18215785,0.00016871,2]
[319375828,1710708638376,-154.9690062,0.00016686,2]
[319375830,1710708638385,-1212.4309938,0.00016871,2]
[319375832,1710708638397,-443.00557705,0.00016871,2]
[319375834,1710708638406,-300.0,0.00017449,2]
[319375836,1710708638415,-1368.83234413,0.0001745,2]
[319375839,1710708638425,-23531.16765587,0.0001745,2]
[319375841,1710708638434,-10893.70399191,0.00018501,2]
[319375843,1710708638444,-1007.96642498,0.00018965,2]
[319375845,1710708638453,-204.763171,0.00019178,2]
[319375847,1710708638462,-166.666666,0.00019178,2]
[319375849,1710708638471,-201.1801546,0.00019624,2]
[319375851,1710708638480,-201.1801546,0.00019624,2]
[319375853,1710708638489,-201.1801546,0.00019624,2]
[319375855,1710708638498,-400.9415609,0.00019624,2]
[319375857,1710708638507,-166.666666,0.00019627,2]
[319375859,1710708638516,-153.0,0.000197,2]
[319375861,1710708638525,-201.1801546,0.000197,2]
[319375863,1710708638533,-153.0,0.000197,2]
[319375865,1710708638542,-201.1801546,0.000197,2]
[319375867,1710708638551,-201.1801546,0.000197,2]
[319375869,1710708638561,-201.1801546,0.000197,2]
[319375871,1710708638570,-201.1801546,0.000197,2]
[319375873,1710708638579,-10000.0,0.00019882,2]
[319375874,1710708638588,-851.89835552,0.000199,2]
[319375876,1710708638597,-153.0,0.000199,2]
[319375878,1710708638606,-153.0,0.000199,2]
[319375880,1710708638615,-175.57347842,0.000199,2]
[319375882,1710708638627,-25.60667618,0.000199,2]
[319375884,1710708638637,-1000.0,0.000199,2]
[319375886,1710708638646,-491.51991303,0.000199,2]
[319375888,1710708638655,-10000.0,0.00019973,2]
[319375890,1710708638665,-4799.54414841,0.0001998,10]
[319375892,1710708638674,-745.64303707,0.00019998,2]
[319375894,1710708638683,-4307.73138155,0.00019998,2]
[319375896,1710708638698,-2513.73403668,0.00019998,2]
[319375898,1710708638709,-269.10999771,0.00019998,2]
[319375900,1710708638720,-155.01240099,0.00019998,2]
[319375902,1710708638729,-367.45035032,0.00019998,2]
[319375904,1710708638739,-187.47951293,0.00019998,2]
[319375906,1710708638749,-154.98450155,0.00019998,2]
[319375908,1710708638758,-154.98450155,0.00019998,2]
[319375910,1710708638767,-596.82810056,0.00019998,2]
[319375912,1710708638777,-154.98450155,0.00019998,2]
[319375914,1710708638786,-2047.20812515,0.00019998,2]
[319376345,1710708643336,-679.0,0.00019998,2]
[319382346,1710709838685,-453.22118573,0.00018355,2]
[319382347,1710709838698,-361.02925851,0.00018355,2]
[319382348,1710709838708,-1394.55741386,0.00018356,2]
[319382362,1710709840536,-523.53543373,0.00018356,2]
[319386271,1710710465725,3224.86444071,0.00015479,2]
[319386272,1710710474533,1775.13555929,0.00015479,2]
[319386273,1710710495397,5164.94391209,0.00015324,2]
[319386274,1710710513407,5057.32008948,0.00015324,2]
[319386275,1710710533162,154.9690062,0.00015479,2]
[319386276,1710710537890,3600.51261965,0.00015479,2]
[319386277,1710710547124,154.9690062,0.00015479,2]
[319386278,1710710555927,2400.34174643,0.00015479,2]
[319386279,1710710571897,2000.28478869,0.00015479,2]
[319386280,1710710593893,2000.28478869,0.00015479,2]
[319386281,1710710606442,24900.0,0.00015427,2]
[319386282,1710710607890,1042.14837491,0.00015479,2]
[319386283,1710710625985,1042.14837491,0.00015479,2]
[319386284,1710710641940,1042.14837491,0.00015479,2]
[319386285,1710710659911,1042.14837491,0.00015479,2]
[319386286,1710710683949,1042.14837491,0.00015479,2]
[319386287,1710710701910,1042.14837491,0.00015479,2]
[319386288,1710710723918,1042.14837491,0.00015479,2]
[319386290,1710710743626,15964.69060675,0.00015479,2]
[319386291,1710710745918,1042.14837491,0.00015479,2]
[319386292,1710710761520,12997.31433519,0.00015479,2]
[319386293,1710710765922,1042.14837491,0.00015479,2]
[319386294,1710710789910,622.08856929,0.00015479,2]
[319386295,1710710879540,3224.86444071,0.00015599,2]
[319386296,1710710879880,210.81749262,0.00015599,2]
[319386297,1710710890210,1570.14224023,0.00015599,2]
[319386298,1710710892789,806.87585143,0.00015599,2]
[319386299,1710710898468,280.83400455,0.00015599,2]
[319386300,1710710900998,558.98911012,0.00015599,2]
[319386321,1710711032651,-530.55719361,0.00015987,2]
[319386322,1710711032660,-290.84412429,0.00015987,2]
[319386323,1710711032670,-308.2187328,0.00016657,2]
[319386324,1710711032679,-1001.2379899,0.00016791,2]
[319386325,1710711032688,-325.52774236,0.00018,2]
[319386326,1710711032698,-210.81749262,0.00018352,2]
[319386327,1710711032708,-9748.58732782,0.00018354,2]
[319386328,1710711032725,-17905.26186173,0.00018354,2]
[319386329,1710711032734,-238.25707164,0.00018356,2]
[319386330,1710711032743,-3239.78015515,0.00018356,2]
[319386331,1710711032755,-15790.00066536,0.00018356,2]
[319386332,1710711032764,-299.90396286,0.00018356,2]
[319386333,1710711032773,-153.0,0.00018373,2]
[319386334,1710711032782,-781.08071871,0.0001852,2]
[319386335,1710711032792,-2000.0,0.00018687,2]
[319386336,1710711032801,-671.97761665,0.000189,2]
[319386337,1710711032810,-153.0,0.00019078,2]
[319386338,1710711032819,-153.0,0.00019078,2]
[319386339,1710711032827,-153.0,0.00019078,2]
[319386340,1710711032837,-153.0,0.00019078,2]
[319386341,1710711032846,-201.1801546,0.00019078,2]
[319386342,1710711032855,-153.0,0.00019078,2]
[319386343,1710711032864,-194.525012,0.00019178,2]
[319386344,1710711032873,-166.666666,0.00019178,2]
[319386345,1710711032883,-2000.0,0.00019373,2]
[319386346,1710711032892,-166.666666,0.00019627,2]
[319386347,1710711032902,-156.01731293,0.00019899,2]
[319386348,1710711032911,-156.01731292,0.000199,2]
[319386349,1710711032920,-3611.57380532,0.000199,2]
[319386350,1710711032930,-442.3679217,0.000199,2]
[319386351,1710711032938,-893.11,0.000199,2]
[319386352,1710711032947,-156.01731292,0.000199,2]
[319386353,1710711032957,-4703.41680152,0.0001998,10]
[319386354,1710711032969,-16883.02221179,0.0001998,10]
[319386355,1710711032980,-36909.6308298,0.0001998,10]
[319386356,1710711032989,-500.0,0.00019997,2]
[319386357,1710711032998,-500.0,0.00019997,2]
[319386358,1710711033007,-776.21576898,0.00019998,2]
[319386359,1710711033017,-154.98450155,0.00019998,2]
[319386360,1710711033026,-191.74719797,0.00019998,2]
[319386361,1710711033035,-204.92613972,0.00019998,2]
[319386362,1710711033045,-324.31466976,0.00019998,2]
[319386363,1710711033054,-154.98450155,0.00019998,2]
[319386364,1710711033065,-179.21240088,0.00019998,2]
[319386365,1710711033075,-404.9506809,0.00019998,2]
[319386366,1710711033085,-184.73640903,0.00019998,2]
[319386367,1710711033094,-155.0,0.00019998,2]
[319386368,1710711033103,-155.0,0.00019998,2]
[319386369,1710711033112,-322.14295371,0.00019998,2]
[319386370,1710711033121,-156.04096191,0.00019998,2]
[319386371,1710711033131,-639.33425979,0.00019998,2]
[319386372,1710711033141,-301.71255932,0.00019998,2]
[319386373,1710711033150,-429.57182691,0.00019998,2]
[319386374,1710711033160,-1475.54009242,0.00019998,2]
[319386375,1710711033169,-2599.93937474,0.00019998,2]
[319386376,1710711033179,-269.36186767,0.00019998,2]
[319386377,1710711033188,-746.39104535,0.00019998,2]
[319386378,1710711033198,-410.77341813,0.00019998,2]
[319386379,1710711033208,-500.0,0.00019998,2]
[319386380,1710711033217,-500.0,0.00019998,2]
[319386381,1710711033227,-500.0,0.00019998,2]
[319386382,1710711033236,-500.0,0.00019998,2]
[319386383,1710711033245,-30539.24620624,0.00019998,2]
[319386384,1710711033255,-477.7172666,0.00019998,2]
[319386385,1710711033264,-500.0,0.00019998,2]
[319386386,1710711033273,-1810.64233737,0.00019998,2]
[319386387,1710711033283,-970.59345097,0.00019998,2]
[319386388,1710711033292,-806.63888185,0.00019998,2]
[319386389,1710711033301,-500.0,0.00019998,2]
[319386390,1710711033311,-500.0,0.00019998,2]
[319386391,1710711033320,-280.75210608,0.00019998,2]
[319386392,1710711033330,-558.6632468,0.00019998,2]
[319386393,1710711033340,-36.14912738,0.00019999,2]
[319386394,1710711033350,-500.0,0.00019999,2]
[319386395,1710711033359,-500.0,0.00019999,2]
[319386396,1710711033369,-500.0,0.00019999,2]
[319386397,1710711033378,-402.74,0.00019999,2]
[319386398,1710711033387,-500.0,0.00019999,2]
[319386399,1710711033396,-500.0,0.00019999,2]
[319386400,1710711033406,-500.0,0.00019999,2]
[319386401,1710711033419,-500.0,0.00019999,2]
[319386402,1710711033428,-500.0,0.00019999,2]
[319386403,1710711033437,-500.0,0.00019999,2]
[319386404,1710711033447,-500.0,0.00019999,2]
[319386405,1710711033457,-500.0,0.00019999,2]
[319386406,1710711033466,-402.74,0.00019999,2]
[319386407,1710711033475,-500.0,0.00019999,2]
[319386408,1710711033484,-500.0,0.00019999,2]
[319386409,1710711033493,-500.0,0.00019999,2]
[319386410,1710711033503,-500.0,0.00019999,2]
[319386411,1710711033512,-201.37,0.00019999,2]
[319386412,1710711033521,-500.0,0.00019999,2]
[319386413,1710711033530,-500.0,0.00019999,2]
[319386414,1710711033539,-500.0,0.00019999,2]
[319386415,1710711033549,-500.0,0.00019999,2]
[319386416,1710711033558,-500.0,0.00019999,2]
[319386417,1710711033566,-500.0,0.00019999,2]
[319386418,1710711033575,-500.0,0.00019999,2]
[319386419,1710711033586,-500.0,0.00019999,2]
[319386420,1710711033595,-500.0,0.00019999,2]
[319386421,1710711033604,-500.0,0.00019999,2]
[319386422,1710711033613,-500.0,0.00019999,2]
[319386423,1710711033622,-500.0,0.00019999,2]
[319386424,1710711033631,-604.11,0.00019999,2]
[319386425,1710711033640,-500.0,0.00019999,2]
[319386426,1710711033649,-500.0,0.00019999,2]
[319386427,1710711033659,-500.0,0.00019999,2]
[319386428,1710711033668,-500.0,0.00019999,2]
[319386429,1710711033677,-201.37,0.00019999,2]
[319386430,1710711033686,-500.0,0.00019999,2]
[319386431,1710711033695,-500.0,0.00019999,2]
[319386432,1710711033704,-500.0,0.00019999,2]
[319386433,1710711033712,-500.0,0.00019999,2]
[319386434,1710711033722,-500.0,0.00019999,2]
[319386435,1710711033731,-500.0,0.00019999,2]
[319386436,1710711033740,-500.0,0.00019999,2]
[319386437,1710711033749,-500.0,0.00019999,2]
[319386438,1710711033758,-402.74,0.00019999,2]
[319386439,1710711033767,-500.0,0.00019999,2]
[319386440,1710711033776,-500.0,0.00019999,2]
[319386441,1710711033785,-500.0,0.00019999,2]
[319386442,1710711033795,-500.0,0.00019999,2]
[319386443,1710711033804,-500.0,0.00019999,2]
[319386444,1710711033815,-500.0,0.00019999,2]
[319386445,1710711033824,-500.0,0.00019999,2]
[319386446,1710711033834,-500.0,0.00019999,2]
[319386447,1710711033843,-402.74,0.00019999,2]
[319386448,1710711033852,-500.0,0.00019999,2]
[319386449,1710711033861,-500.0,0.00019999,2]